[Event "28th North American Open"]
[Site "Las Vegas"]
[Date "2018.12.29"]
[Round "6"]
[White "Vivekananthan, Anish"]
[Black "Aldama Degurnay, Dionisio"]
[Result "0-1"]
[ECO "B40"]
[WhiteElo "2294"]
[BlackElo "2412"]
[PlyCount "82"]
[EventDate "2018.12.??"]
[EventType "swiss"]
[EventRounds "9"]
[EventCountry "USA"]
[TimeControl "6600+10"]
[WhiteClock "0:03:00"]
[BlackClock "0:02:01"]

1. e4 {[%emt 0:19:40]} c5 2. Nf3 {[%emt 0:00:00]} e6 {[%emt 0:20:04]} 3. c3 {
[%emt 0:00:00]} d5 {[%emt 0:00:00]} 4. exd5 {[%emt 0:00:00]} exd5 {[%emt 0:00:
48]} 5. d4 {[%emt 0:00:00]} Nc6 {[%emt 0:00:00]} 6. Be2 {[%emt 0:02:45]} Nf6 {
[%emt 0:02:24]} 7. Be3 {[%emt 0:00:15]} cxd4 {[%emt 0:03:29]} 8. Nxd4 {[%emt 0:
02:35]} Bd6 {[%emt 0:00:48]} 9. Nd2 {[%emt 0:01:49]} O-O {[%emt 0:03:50]} 10.
O-O {[%emt 0:01:11]} Re8 {[%emt 0:00:25]} 11. Re1 {[%emt 0:04:57]} Ne5 {
[%emt 0:04:45]} 12. h3 {[%emt 0:00:27]} Bd7 {[%emt 0:05:52]} 13. Qc2 {[%emt 0:
18:14]} a6 {[%emt 0:04:55]} 14. Rad1 {[%emt 0:02:49]} Rc8 {[%emt 0:01:11]} 15.
Qb1 {[%emt 0:11:13]} Ng6 {[%emt 0:06:13]} 16. Bd3 {[%emt 0:01:00]} Ba4 {
[%emt 0:06:34]} 17. Rc1 {[%emt 0:00:51]} Nf4 {[%emt 0:03:36]} 18. Bc2 {[%emt 0:
09:59]} Bc6 {[%emt 0:08:24]} 19. Rcd1 {[%emt 0:02:31]} g6 {[%emt 0:02:17]} 20.
g3 {[%emt 0:18:30]} Nxh3+ {[%emt 0:03:29]} 21. Kg2 {[%emt 0:00:00]} Bd7 {
[%emt 0:00:00]} 22. Rh1 {[%emt 0:00:31]} Rxe3 {[%emt 0:03:26]} 23. fxe3 {
[%emt 0:00:26]} Ng5 {[%emt 0:00:00]} 24. Qc1 {[%emt 0:07:26]} Qe7 {[%emt 0:03:
53]} 25. Rde1 {[%emt 0:02:39]} Qe5 {[%emt 0:00:13]} 26. Nf1 {[%emt 0:00:00]}
Nge4 {[%emt 0:02:58]} 27. Nf3 {[%emt 0:00:03]} Qe7 {[%emt 0:02:51]} 28. N3d2 {
[%emt 0:00:47]} h5 {[%emt 0:13:30]} 29. Qb1 {[%emt 0:02:55]} Re8 {[%emt 0:03:
11]} 30. Nxe4 {[%emt 0:00:55]} dxe4 {[%emt 0:00:00]} 31. Bd1 {[%emt 0:00:00]}
Rc8 {[%emt 0:00:25]} 32. Rh4 {[%emt 0:00:00]} Rc5 {[%emt 0:04:39]} 33. Qc2 {
[%emt 0:00:25]} Rg5 {[%emt 0:00:00]} 34. Qf2 {[%emt 0:00:06]} Ng4 {[%emt 0:00:
30]} 35. Bxg4 {[%emt 0:00:00]} Bxg4 {[%emt 0:00:00]} 36. Rh2 {[%emt 0:00:00]}
Bf3+ {[%emt 0:00:00]} 37. Kg1 {[%emt 0:00:00]} Qc7 {[%emt 0:00:29]} 38. Rh3 {
[%emt 0:00:00]} h4 {[%emt 0:00:06]} 39. Rxh4 {[%emt 0:00:00]} Bxg3 {[%emt 0:00:
08]} 40. Nxg3 {[%emt 0:00:00]} Rxg3+ {[%emt 0:00:00]} 41. Kf1 {[%emt 0:00:00]}
Qc4+ {[%emt 0:00:00]} 0-1

[Event "28th North American Open"]
[Site "Las Vegas"]
[Date "2018.12.28"]
[Round "6"]
[White "Chua, Alexander"]
[Black "Patel, Advait"]
[Result "0-1"]
[ECO "E60"]
[WhiteElo "2291"]
[BlackElo "2455"]
[PlyCount "68"]
[EventDate "2018.12.??"]
[EventType "swiss"]
[EventRounds "9"]
[EventCountry "USA"]
[TimeControl "6600+10"]
[WhiteClock "0:46:16"]
[BlackClock "0:41:57"]

1. d4 {[%emt 0:19:40]} Nf6 {[%emt 0:19:56]} 2. c4 {[%emt 0:00:00]} g6 {[%emt 0:
00:00]} 3. Nf3 {[%emt 0:00:00]} Bg7 {[%emt 0:00:00]} 4. g3 {[%emt 0:00:00]} O-O
{[%emt 0:00:00]} 5. Bg2 {[%emt 0:00:00]} c5 {[%emt 0:00:00]} 6. d5 {[%emt 0:00:
00]} d6 {[%emt 0:00:00]} 7. Nc3 {[%emt 0:00:00]} e6 {[%emt 0:00:00]} 8. O-O {
[%emt 0:00:00]} exd5 {[%emt 0:00:00]} 9. cxd5 {[%emt 0:00:00]} Re8 {[%emt 0:00:
00]} 10. Bf4 {[%emt 0:05:07]} Na6 {[%emt 0:00:00]} 11. Re1 {[%emt 0:02:42]} Bg4
{[%emt 0:04:21]} 12. h3 {[%emt 0:00:35]} Bxf3 {[%emt 0:00:13]} 13. Bxf3 {
[%emt 0:00:29]} Qd7 {[%emt 0:13:15]} 14. a4 {[%emt 0:02:33]} Nb4 {[%emt 0:09:
47]} 15. Kh2 {[%emt 0:01:05]} a6 {[%emt 0:00:29]} 16. a5 {[%emt 0:00:09]} Qe7 {
[%emt 0:06:49]} 17. Na2 {[%emt 0:05:56]} Nxa2 {[%emt 0:04:03]} 18. Rxa2 {
[%emt 0:00:00]} Ne4 {[%emt 0:00:18]} 19. Bxe4 {[%emt 0:03:14]} Qxe4 {[%emt 0:
00:00]} 20. f3 {[%emt 0:00:00]} Qb4 {[%emt 0:02:51]} 21. Bxd6 {[%emt 0:07:03]}
Rad8 {[%emt 0:02:19]} 22. Ra4 {[%emt 0:00:33]} Qxb2 {[%emt 0:04:54]} 23. Bxc5 {
[%emt 0:09:31]} Bc3 {[%emt 0:00:27]} 24. Ba3 {[%emt 0:04:24]} Qb5 {[%emt 0:00:
44]} 25. Re4 {[%emt 0:01:46]} Qxa5 {[%emt 0:03:13]} 26. Ra4 {[%emt 0:01:45]}
Qb5 {[%emt 0:00:00]} 27. Re4 {[%emt 0:00:00]} Bxe1 {[%emt 0:00:23]} 28. Qxe1 {
[%emt 0:00:00]} Qxd5 {[%emt 0:00:00]} 29. Rxe8+ {[%emt 0:01:07]} Rxe8 {[%emt 0:
00:00]} 30. Bb4 {[%emt 0:01:09]} Qa2 {[%emt 0:00:00]} 31. Bd2 {[%emt 0:00:00]}
Qc4 {[%emt 0:00:00]} 32. e4 {[%emt 0:00:48]} Rd8 {[%emt 0:00:00]} 33. Be3 {
[%emt 0:00:01]} Qc2+ {[%emt 0:00:00]} 34. Bf2 {[%emt 0:00:00]} Rd2 {[%emt 0:00:
00]} 0-1

[Event "28th North American Open"]
[Site "Las Vegas"]
[Date "2018.12.29"]
[Round "6"]
[White "Balakrishnan, Praveen"]
[Black "Della Morte, Pablo"]
[Result "1-0"]
[ECO "B96"]
[WhiteElo "2418"]
[BlackElo "2286"]
[PlyCount "93"]
[EventDate "2018.12.??"]
[EventType "swiss"]
[EventRounds "9"]
[EventCountry "USA"]
[TimeControl "6600+10"]
[WhiteClock "0:01:16"]
[BlackClock "0:00:57"]

1. e4 {[%emt 0:19:40]} c5 {[%emt 0:20:27]} 2. Nf3 {[%emt 0:00:00]} d6 {[%emt 0:
00:00]} 3. d4 {[%emt 0:00:00]} cxd4 {[%emt 0:00:00]} 4. Nxd4 {[%emt 0:00:00]}
Nf6 {[%emt 0:00:00]} 5. Nc3 {[%emt 0:00:00]} a6 {[%emt 0:00:00]} 6. Bg5 {
[%emt 0:00:00]} e6 {[%emt 0:00:00]} 7. f4 {[%emt 0:00:00]} Qc7 {[%emt 0:00:00]}
8. Qe2 {[%emt 0:00:00]} Nbd7 {[%emt 0:04:50]} 9. O-O-O {[%emt 0:00:00]} Be7 {
[%emt 0:01:07]} 10. g4 {[%emt 0:00:13]} b5 {[%emt 0:08:17]} 11. a3 {[%emt 0:00:
00]} Bb7 {[%emt 0:01:04]} 12. Bh4 {[%emt 0:01:20]} h6 {[%emt 0:05:26]} 13. Kb1
{[%emt 0:05:09]} Rc8 {[%emt 0:06:55]} 14. Rg1 {[%emt 0:06:14]} g6 {[%emt 0:23:
00]} 15. Bg3 {[%emt 0:27:08]} e5 {[%emt 0:08:44]} 16. Nb3 {[%emt 0:08:57]} Nb6
{[%emt 0:03:07]} 17. Bh3 {[%emt 0:24:23]} Na4 {[%emt 0:11:00]} 18. Rd3 {
[%emt 0:06:51]} Nxe4 {[%emt 0:02:38]} 19. Nxe4 {[%emt 0:10:42]} Bxe4 {[%emt 0:
00:00]} 20. Rd2 {[%emt 0:00:16]} Qc4 {[%emt 0:04:30]} 21. Nd4 {[%emt 0:01:57]}
Qxe2 {[%emt 0:07:44]} 22. Rxe2 {[%emt 0:00:00]} d5 {[%emt 0:00:02]} 23. fxe5 {
[%emt 0:00:00]} Rc4 {[%emt 0:04:01]} 24. Bf2 {[%emt 0:00:29]} Bxa3 {[%emt 0:00:
00]} 25. Rxe4 {[%emt 0:00:00]} Bxb2 {[%emt 0:00:00]} 26. Rf4 {[%emt 0:00:00]}
Rb4 {[%emt 0:00:00]} 27. Ne2 {[%emt 0:00:00]} d4 {[%emt 0:01:13]} 28. c3 {
[%emt 0:00:00]} Bxc3+ {[%emt 0:00:15]} 29. Kc1 {[%emt 0:00:00]} Nc5 {[%emt 0:
00:00]} 30. Rd1 {[%emt 0:00:00]} Ne6 {[%emt 0:00:00]} 31. Rf3 {[%emt 0:00:00]}
Ng5 {[%emt 0:00:00]} 32. Rfd3 {[%emt 0:00:00]} Bb2+ {[%emt 0:00:01]} 33. Kc2 {
[%emt 0:00:00]} O-O {[%emt 0:00:00]} 34. Bxd4 {[%emt 0:00:00]} Rc8+ {[%emt 0:
00:00]} 35. Bc3 {[%emt 0:00:00]} Bxc3 {[%emt 0:00:00]} 36. Nxc3 {[%emt 0:00:00]
} Rbc4 {[%emt 0:00:00]} 37. Kb3 {[%emt 0:00:00]} Kg7 {[%emt 0:00:00]} 38. Nd5 {
[%emt 0:00:00]} Nxh3 {[%emt 0:00:00]} 39. Rxh3 {[%emt 0:00:00]} Rxg4 {[%emt 0:
00:00]} 40. Rf3 {[%emt 0:00:00]} Rd8 {[%emt 0:00:00]} 41. Rdf1 {[%emt 0:00:00]}
h5 {[%emt 0:01:44]} 42. Rxf7+ {[%emt 0:00:39]} Kh6 {[%emt 0:00:00]} 43. Nf4 {
[%emt 0:00:03]} Re8 {[%emt 0:00:15]} 44. Re1 {[%emt 0:02:40]} Kg5 {[%emt 0:00:
00]} 45. Re4 {[%emt 0:00:14]} a5 {[%emt 0:00:00]} 46. e6 {[%emt 0:00:00]} Rxf4
{[%emt 0:00:33]} 47. Rfxf4 {[%emt 0:00:00]} 1-0

[Event "28th North American Open"]
[Site "Las Vegas"]
[Date "2018.12.28"]
[Round "6"]
[White "Yanayt, Eugene"]
[Black "Mulyar, Michael"]
[Result "1-0"]
[ECO "A07"]
[WhiteElo "2122"]
[BlackElo "2398"]
[PlyCount "59"]
[EventDate "2018.12.??"]
[EventType "swiss"]
[EventRounds "9"]
[EventCountry "USA"]
[TimeControl "6600+10"]
[WhiteClock "0:08:54"]
[BlackClock "1:09:24"]

1. Nf3 {[%emt 0:19:40]} d5 {[%emt 0:20:02]} 2. g3 {[%emt 0:00:00]} Nf6 {
[%emt 0:00:00]} 3. Bg2 {[%emt 0:00:00]} c6 {[%emt 0:00:00]} 4. O-O {[%emt 0:00:
00]} Bg4 {[%emt 0:00:00]} 5. h3 {[%emt 0:01:11]} Bh5 {[%emt 0:00:00]} 6. d4 {
[%emt 0:00:09]} e6 {[%emt 0:00:00]} 7. c4 {[%emt 0:01:34]} Nbd7 {[%emt 0:00:00]
} 8. Nc3 {[%emt 0:03:07]} Be7 {[%emt 0:00:04]} 9. Ne5 {[%emt 0:03:49]} O-O {
[%emt 0:00:20]} 10. g4 {[%emt 0:00:50]} Bg6 {[%emt 0:00:00]} 11. Nxg6 {[%emt 0:
00:00]} hxg6 {[%emt 0:00:00]} 12. b3 {[%emt 0:00:10]} Qa5 {[%emt 0:00:00]} 13.
Bd2 {[%emt 0:01:41]} Qa6 {[%emt 0:00:28]} 14. Rc1 {[%emt 0:08:33]} Ba3 {
[%emt 0:04:42]} 15. Rc2 {[%emt 0:03:56]} dxc4 {[%emt 0:01:59]} 16. bxc4 {
[%emt 0:05:34]} Qxc4 {[%emt 0:01:06]} 17. Nb1 {[%emt 0:04:36]} Qa6 {[%emt 0:01:
07]} 18. Nxa3 {[%emt 0:00:39]} Qxa3 {[%emt 0:00:00]} 19. Qb1 {[%emt 0:04:43]}
Qa6 {[%emt 0:00:00]} 20. Rfc1 {[%emt 0:10:48]} e5 {[%emt 0:07:18]} 21. g5 {
[%emt 0:07:40]} Nh5 {[%emt 0:00:31]} 22. e3 {[%emt 0:11:44]} exd4 {[%emt 0:00:
15]} 23. exd4 {[%emt 0:00:28]} Qd3 {[%emt 0:01:58]} 24. Qxb7 {[%emt 0:04:18]}
Nb6 {[%emt 0:00:05]} 25. Qxc6 {[%emt 0:00:48]} Qxd4 {[%emt 0:00:59]} 26. Be3 {
[%emt 0:01:08]} Qh4 {[%emt 0:05:13]} 27. Rc4 {[%emt 0:03:04]} Nxc4 {[%emt 0:00:
00]} 28. Rxc4 {[%emt 0:00:00]} Nf4 {[%emt 0:00:00]} 29. Rxf4 {[%emt 0:01:11]}
Qh5 {[%emt 0:00:00]} 30. Rxf7 {[%emt 0:04:45]} 1-0

[Event "28th North American Open"]
[Site "Las Vegas"]
[Date "2018.12.29"]
[Round "6"]
[White "Li, Ruifeng"]
[Black "Wu, Rochelle"]
[Result "1-0"]
[ECO "D00"]
[WhiteElo "2559"]
[BlackElo "2096"]
[PlyCount "69"]
[EventDate "2018.12.??"]
[EventType "swiss"]
[EventRounds "9"]
[EventCountry "USA"]
[TimeControl "6600+10"]
[WhiteClock "0:30:46"]
[BlackClock "0:01:35"]

1. d4 {[%emt 0:19:40]} d5 2. Bf4 {[%emt 0:00:00]} c5 {[%emt 0:20:01]} 3. e3 {
[%emt 0:00:00]} Nc6 {[%emt 0:00:11]} 4. c3 {[%emt 0:00:00]} Nf6 {[%emt 0:00:01]
} 5. Nd2 {[%emt 0:00:00]} Bf5 {[%emt 0:00:19]} 6. Ngf3 {[%emt 0:00:22]} e6 {
[%emt 0:01:20]} 7. Ne5 {[%emt 0:06:57]} Qb6 {[%emt 0:15:56]} 8. Qa4 {[%emt 0:
12:24]} Be7 {[%emt 0:13:18]} 9. Bb5 {[%emt 0:01:59]} Rc8 {[%emt 0:00:15]} 10.
dxc5 {[%emt 0:01:36]} Bxc5 {[%emt 0:02:20]} 11. Nb3 {[%emt 0:00:01]} O-O {
[%emt 0:02:19]} 12. Nxc5 {[%emt 0:03:34]} Nxe5 {[%emt 0:00:00]} 13. b4 {
[%emt 0:00:00]} Ng6 {[%emt 0:04:35]} 14. Bg3 {[%emt 0:00:00]} e5 {[%emt 0:01:
30]} 15. O-O {[%emt 0:03:36]} a6 {[%emt 0:04:54]} 16. Be2 {[%emt 0:00:15]} Ne4
{[%emt 0:01:41]} 17. Nxe4 {[%emt 0:00:36]} Bxe4 {[%emt 0:00:00]} 18. Qb3 {
[%emt 0:01:11]} f5 {[%emt 0:08:31]} 19. c4 {[%emt 0:00:27]} Qc6 {[%emt 0:03:35]
} 20. c5 {[%emt 0:01:33]} f4 {[%emt 0:04:11]} 21. f3 {[%emt 0:00:00]} Bf5 {
[%emt 0:00:23]} 22. exf4 {[%emt 0:00:00]} Nxf4 {[%emt 0:00:29]} 23. Bxf4 {
[%emt 0:00:00]} exf4 {[%emt 0:00:00]} 24. Rad1 {[%emt 0:03:20]} Rcd8 {[%emt 0:
00:25]} 25. Rd4 {[%emt 0:05:04]} Rfe8 {[%emt 0:01:08]} 26. Qd1 {[%emt 0:00:00]}
Qe6 {[%emt 0:09:54]} 27. Rf2 {[%emt 0:02:16]} Qe3 {[%emt 0:05:37]} 28. g4 {
[%emt 0:04:48]} Be6 {[%emt 0:02:58]} 29. Kg2 {[%emt 0:03:48]} Rc8 {[%emt 0:02:
25]} 30. Bd3 {[%emt 0:03:28]} Kh8 {[%emt 0:02:03]} 31. Bc2 {[%emt 0:00:01]} Bg8
{[%emt 0:00:38]} 32. Qd2 {[%emt 0:04:15]} g5 {[%emt 0:02:07]} 33. Bb3 {[%emt 0:
02:29]} Re5 {[%emt 0:00:06]} 34. Qb2 {[%emt 0:01:15]} Rd8 {[%emt 0:01:05]} 35.
Re4 {[%emt 0:00:09]} 1-0

[Event "28th North American Open"]
[Site "Las Vegas"]
[Date "2018.12.28"]
[Round "6"]
[White "Karthik Venkataraman"]
[Black "Kolay, Alex"]
[Result "1-0"]
[ECO "C19"]
[WhiteElo "2527"]
[BlackElo "2270"]
[PlyCount "75"]
[EventDate "2018.12.??"]
[EventType "swiss"]
[EventRounds "9"]
[EventCountry "USA"]
[TimeControl "6600+10"]
[WhiteClock "1:09:52"]
[BlackClock "0:03:50"]

1. e4 {[%emt 0:19:40]} e6 {[%emt 0:22:49]} 2. d4 {[%emt 0:00:00]} d5 {[%emt 0:
00:00]} 3. Nc3 {[%emt 0:00:00]} Bb4 {[%emt 0:00:00]} 4. e5 {[%emt 0:00:00]} c5
{[%emt 0:00:00]} 5. a3 {[%emt 0:00:00]} Bxc3+ {[%emt 0:00:00]} 6. bxc3 {
[%emt 0:00:00]} Ne7 {[%emt 0:00:00]} 7. Qg4 {[%emt 0:00:00]} Qc7 {[%emt 0:00:
00]} 8. Qxg7 {[%emt 0:00:00]} Rg8 {[%emt 0:00:00]} 9. Qxh7 {[%emt 0:00:00]}
cxd4 {[%emt 0:00:00]} 10. Ne2 {[%emt 0:00:00]} Nbc6 {[%emt 0:00:00]} 11. f4 {
[%emt 0:00:00]} dxc3 {[%emt 0:00:00]} 12. h4 {[%emt 0:00:00]} d4 {[%emt 0:03:
34]} 13. h5 {[%emt 0:00:00]} b6 {[%emt 0:00:03]} 14. h6 {[%emt 0:00:00]} Kf8 {
[%emt 0:16:59]} 15. Qd3 {[%emt 0:05:11]} Bb7 {[%emt 0:01:12]} 16. h7 {[%emt 0:
00:00]} Rh8 {[%emt 0:00:00]} 17. Qh3 {[%emt 0:00:00]} Ke8 {[%emt 0:03:50]} 18.
Ng3 {[%emt 0:00:02]} Kd7 {[%emt 0:02:49]} 19. Bd3 {[%emt 0:02:14]} Raf8 {
[%emt 0:01:49]} 20. O-O {[%emt 0:00:57]} Kd8 {[%emt 0:05:46]} 21. Ne4 {[%emt 0:
01:44]} Nd5 {[%emt 0:00:33]} 22. Ng5 {[%emt 0:03:12]} Bc8 {[%emt 0:01:40]} 23.
Be4 {[%emt 0:05:56]} Nce7 {[%emt 0:11:32]} 24. a4 {[%emt 0:00:12]} Qd7 {
[%emt 0:08:45]} 25. Qh5 {[%emt 0:02:04]} Qe8 {[%emt 0:05:20]} 26. Qd1 {[%emt 0:
00:00]} Nc6 {[%emt 0:09:54]} 27. Ba3 {[%emt 0:00:44]} Nde7 {[%emt 0:02:00]} 28.
Rf3 {[%emt 0:03:32]} Bd7 {[%emt 0:08:19]} 29. Bxe7+ {[%emt 0:00:00]} Kxe7 {
[%emt 0:00:16]} 30. Bxc6 {[%emt 0:00:00]} Bxc6 {[%emt 0:00:00]} 31. Qxd4 {
[%emt 0:00:00]} Qd8 {[%emt 0:00:31]} 32. Qb4+ {[%emt 0:00:00]} Ke8 {[%emt 0:00:
00]} 33. Rd3 {[%emt 0:00:00]} Qe7 {[%emt 0:00:00]} 34. Rd6 {[%emt 0:00:00]} Qb7
{[%emt 0:00:27]} 35. Rad1 {[%emt 0:01:05]} Bd5 {[%emt 0:00:00]} 36. Ne4 {
[%emt 0:00:11]} f5 {[%emt 0:02:46]} 37. Rxe6+ {[%emt 0:00:00]} Kd8 {[%emt 0:01:
36]} 38. Rxd5+ {[%emt 0:00:00]} 1-0

[Event "28th North American Open"]
[Site "Las Vegas"]
[Date "2018.12.29"]
[Round "6"]
[White "Adamson, Robby"]
[Black "Becerra Rivero, Julio"]
[Result "0-1"]
[ECO "C56"]
[WhiteElo "2218"]
[BlackElo "2520"]
[PlyCount "118"]
[EventDate "2018.12.??"]
[EventType "swiss"]
[EventRounds "9"]
[EventCountry "USA"]
[TimeControl "6600+10"]
[WhiteClock "0:06:35"]
[BlackClock "0:08:04"]

1. e4 {[%emt 0:19:40]} e5 2. Nf3 {[%emt 0:00:00]} Nc6 {[%emt 0:20:08]} 3. Bc4 {
[%emt 0:00:17]} Nf6 {[%emt 0:00:00]} 4. d4 {[%emt 0:00:00]} exd4 {[%emt 0:00:
02]} 5. e5 {[%emt 0:00:00]} d5 {[%emt 0:00:11]} 6. Bb5 {[%emt 0:00:00]} Ne4 {
[%emt 0:01:22]} 7. Nxd4 {[%emt 0:00:00]} Bc5 {[%emt 0:00:27]} 8. Be3 {[%emt 0:
00:00]} O-O {[%emt 0:03:37]} 9. Nxc6 {[%emt 0:00:00]} bxc6 {[%emt 0:00:00]} 10.
Bxc5 {[%emt 0:00:00]} Nxc5 {[%emt 0:00:00]} 11. Bxc6 {[%emt 0:00:00]} Rb8 {
[%emt 0:01:22]} 12. Qxd5 {[%emt 0:00:00]} Qe7 {[%emt 0:00:25]} 13. O-O {
[%emt 0:00:00]} Rxb2 {[%emt 0:11:18]} 14. Na3 {[%emt 0:00:00]} Rb4 {[%emt 0:14:
53]} 15. Rfe1 {[%emt 0:31:57]} Ne6 {[%emt 0:09:11]} 16. Qd3 {[%emt 0:16:58]}
Qc5 {[%emt 0:03:32]} 17. Qd5 {[%emt 0:14:04]} Qe7 {[%emt 0:08:31]} 18. Qd3 {
[%emt 0:00:13]} Rb6 {[%emt 0:01:35]} 19. Bf3 {[%emt 0:04:14]} Rd8 {[%emt 0:02:
16]} 20. Qe3 {[%emt 0:00:24]} Nd4 {[%emt 0:04:54]} 21. Be4 {[%emt 0:16:01]} Ra6
{[%emt 0:03:03]} 22. Nc4 {[%emt 0:00:50]} Ra4 {[%emt 0:01:52]} 23. Nd2 {
[%emt 0:03:12]} g6 {[%emt 0:01:46]} 24. Bd3 {[%emt 0:02:14]} Nf5 {[%emt 0:05:
43]} 25. Qe2 {[%emt 0:03:02]} Kg7 {[%emt 0:00:00]} 26. Nf3 {[%emt 0:00:00]} Nd4
{[%emt 0:00:04]} 27. Nxd4 {[%emt 0:00:00]} Raxd4 {[%emt 0:00:00]} 28. Qe3 {
[%emt 0:00:00]} c5 {[%emt 0:00:29]} 29. h3 {[%emt 0:00:37]} Be6 {[%emt 0:01:49]
} 30. Be4 {[%emt 0:00:00]} Ra4 {[%emt 0:01:07]} 31. Bc6 {[%emt 0:00:00]} Rxa2 {
[%emt 0:01:56]} 32. Rxa2 {[%emt 0:00:00]} Bxa2 {[%emt 0:01:04]} 33. Ra1 {
[%emt 0:00:00]} Be6 {[%emt 0:00:15]} 34. Bf3 {[%emt 0:01:04]} Bf5 {[%emt 0:02:
59]} 35. Ra5 {[%emt 0:00:04]} Rc8 {[%emt 0:00:46]} 36. Qc3 {[%emt 0:00:15]} Be6
{[%emt 0:00:18]} 37. Kh2 {[%emt 0:00:00]} Rc7 {[%emt 0:00:10]} 38. g3 {[%emt 0:
00:31]} h5 {[%emt 0:01:47]} 39. h4 {[%emt 0:00:00]} Kh7 {[%emt 0:02:12]} 40.
Kg2 {[%emt 0:00:00]} Bf5 {[%emt 0:05:15]} 41. Bd5 {[%emt 0:00:00]} Rd7 {
[%emt 0:00:00]} 42. Bf3 {[%emt 0:00:41]} Rc7 {[%emt 0:00:00]} 43. Bd5 {[%emt 0:
00:16]} Qd7 {[%emt 0:00:00]} 44. Bf3 {[%emt 0:00:00]} Qd4 {[%emt 0:00:00]} 45.
Qxd4 {[%emt 0:00:00]} cxd4 {[%emt 0:00:00]} 46. Bd1 {[%emt 0:00:00]} Kg7 {
[%emt 0:00:18]} 47. Ra4 {[%emt 0:00:00]} Rd7 {[%emt 0:00:24]} 48. Rc4 {[%emt 0:
00:00]} a5 {[%emt 0:00:31]} 49. f4 {[%emt 0:00:00]} Ra7 {[%emt 0:00:00]} 50.
Ra4 {[%emt 0:00:00]} Bd7 {[%emt 0:00:00]} 51. Ra3 {[%emt 0:00:00]} a4 {[%emt 0:
00:00]} 52. Kf2 {[%emt 0:00:00]} Rc7 {[%emt 0:00:00]} 53. Ke2 {[%emt 0:00:00]}
Rc4 {[%emt 0:00:00]} 54. Kd2 {[%emt 0:00:00]} Rb4 {[%emt 0:00:00]} 55. Ra2 {
[%emt 0:00:00]} Kf8 {[%emt 0:00:00]} 56. Ra1 {[%emt 0:00:00]} Ke7 {[%emt 0:00:
00]} 57. c3 {[%emt 0:00:00]} Rb2+ {[%emt 0:00:00]} 58. Kd3 {[%emt 0:00:00]}
dxc3 {[%emt 0:00:00]} 59. Bxa4 {[%emt 0:00:00]} c2 {[%emt 0:00:00]} 0-1

[Event "28th North American Open"]
[Site "Las Vegas"]
[Date "2018.12.29"]
[Round "6"]
[White "Kollar, Romain"]
[Black "Ginsburg, Mark"]
[Result "1/2-1/2"]
[ECO "B41"]
[WhiteElo "2180"]
[BlackElo "2336"]
[PlyCount "107"]
[EventDate "2018.12.??"]
[EventType "swiss"]
[EventRounds "9"]
[EventCountry "USA"]
[TimeControl "6600+10"]
[WhiteClock "0:04:34"]
[BlackClock "0:00:52"]

1. e4 {[%emt 0:19:40]} c5 {[%emt 0:25:52]} 2. Nf3 {[%emt 0:00:00]} e6 {[%emt 0:
00:00]} 3. d4 {[%emt 0:00:00]} cxd4 {[%emt 0:00:00]} 4. Nxd4 {[%emt 0:00:00]}
a6 {[%emt 0:00:00]} 5. c4 {[%emt 0:00:31]} Nf6 {[%emt 0:00:00]} 6. Nc3 {
[%emt 0:00:26]} Qc7 {[%emt 0:00:00]} 7. a3 {[%emt 0:02:21]} b6 {[%emt 0:00:00]}
8. Be3 {[%emt 0:00:26]} Bb7 {[%emt 0:00:00]} 9. f3 {[%emt 0:00:00]} d6 {
[%emt 0:00:00]} 10. Be2 {[%emt 0:00:00]} Be7 {[%emt 0:00:00]} 11. O-O {[%emt 0:
00:00]} O-O {[%emt 0:00:00]} 12. Qd2 {[%emt 0:00:00]} Nbd7 {[%emt 0:00:00]} 13.
Rfd1 {[%emt 0:00:00]} Rac8 {[%emt 0:00:00]} 14. Rac1 {[%emt 0:00:00]} Rfe8 {
[%emt 0:00:00]} 15. b4 {[%emt 0:00:00]} Qb8 {[%emt 0:00:00]} 16. Nb3 {[%emt 0:
06:52]} Bf8 {[%emt 0:06:33]} 17. Na4 {[%emt 0:05:34]} Bc6 {[%emt 0:16:07]} 18.
Nb2 {[%emt 0:00:20]} Bb7 {[%emt 0:00:00]} 19. Bf1 {[%emt 0:09:39]} h6 {[%emt 0:
18:28]} 20. Kh1 {[%emt 0:13:44]} Bc6 {[%emt 0:12:03]} 21. a4 {[%emt 0:01:28]}
a5 {[%emt 0:04:51]} 22. bxa5 {[%emt 0:24:31]} Nc5 {[%emt 0:00:14]} 23. Nxc5 {
[%emt 0:13:11]} bxc5 {[%emt 0:01:12]} 24. Nd3 {[%emt 0:00:00]} Bxa4 {[%emt 0:
05:04]} 25. Re1 {[%emt 0:00:00]} Qc7 {[%emt 0:05:21]} 26. Ra1 {[%emt 0:00:43]}
Bd7 {[%emt 0:03:37]} 27. Qc3 {[%emt 0:03:53]} e5 {[%emt 0:01:40]} 28. Ra3 {
[%emt 0:04:53]} Ra8 {[%emt 0:00:02]} 29. Rea1 {[%emt 0:00:00]} Ra6 {[%emt 0:05:
35]} 30. Bd2 {[%emt 0:02:05]} Rea8 {[%emt 0:00:40]} 31. Nb2 {[%emt 0:01:05]}
Be7 {[%emt 0:00:19]} 32. Nd1 {[%emt 0:02:30]} Bd8 {[%emt 0:05:13]} 33. R1a2 {
[%emt 0:00:27]} Rb8 {[%emt 0:00:15]} 34. Qd3 {[%emt 0:00:07]} Rba8 {[%emt 0:00:
00]} 35. Nc3 {[%emt 0:00:00]} Ne8 {[%emt 0:01:30]} 36. Nd5 {[%emt 0:00:00]} Qc6
{[%emt 0:00:58]} 37. Be2 {[%emt 0:00:59]} Nf6 {[%emt 0:00:00]} 38. Qb1 {
[%emt 0:00:00]} R6a7 {[%emt 0:00:23]} 39. Be1 {[%emt 0:00:00]} Rb7 {[%emt 0:00:
00]} 40. Qa1 {[%emt 0:00:00]} Rab8 {[%emt 0:00:00]} 41. Nc3 {[%emt 0:00:00]}
Qa6 {[%emt 0:00:00]} 42. Nb5 {[%emt 0:00:00]} Ne8 {[%emt 0:00:00]} 43. Rb2 {
[%emt 0:00:00]} Nc7 {[%emt 0:00:00]} 44. Nxc7 {[%emt 0:00:00]} Bxc7 {[%emt 0:
00:00]} 45. Rxb7 {[%emt 0:00:00]} Rxb7 {[%emt 0:00:38]} 46. Bd3 {[%emt 0:00:00]
} Bc8 {[%emt 0:00:18]} 47. Qa2 {[%emt 0:00:00]} Rb8 {[%emt 0:00:00]} 48. Bc2 {
[%emt 0:00:00]} Be6 {[%emt 0:00:12]} 49. Bd3 {[%emt 0:00:00]} Kh7 {[%emt 0:00:
00]} 50. h3 {[%emt 0:00:00]} Bd8 {[%emt 0:00:00]} 51. Qc2 {[%emt 0:00:00]} Bd7
{[%emt 0:00:51]} 52. Qa2 {[%emt 0:00:00]} Bc8 {[%emt 0:00:15]} 53. Qc2 {
[%emt 0:00:00]} Bd7 {[%emt 0:00:00]} 54. Qa2 {[%emt 0:00:00]} 1/2-1/2